fUSD/lending_fUSD_20251123
["ID","MTS","AMOUNT","RATE_DAILY","PERIOD"]
[394703936,1763907050861,-504.88731442,0.00038356,8]
[394703937,1763907050870,-505.77137007,0.00038356,8]
[394703938,1763907050880,-500.0,0.00038356,8]
[394703939,1763907050889,-500.0,0.00038356,8]
[394703940,1763907050898,-500.0,0.00038356,8]
[394703941,1763907050907,-500.0,0.00038356,8]
[394703942,1763907050916,-518.66090811,0.00038356,8]
[394703943,1763907050930,-426.59402721,0.00038356,8]
[394703944,1763907050939,-500.0,0.00038356,8]
[394703945,1763907050948,-500.0,0.00038356,8]
[394703946,1763907050960,-621.32282578,0.00038356,8]
[394703947,1763907050971,-504.39,0.00038356,8]
[394703948,1763907050982,-500.0,0.00038356,8]
[394703949,1763907050992,-500.0,0.00038356,8]
[394703950,1763907051002,-500.0,0.00038356,8]
[394703951,1763907051012,-500.0,0.00038356,8]
[394703952,1763907051022,-500.0,0.00038356,8]
[394703953,1763907051031,-543.53,0.00038356,120]
[394703954,1763907051041,-241.95107356,0.00038356,8]
[394703955,1763907051050,-278.7025501,0.00038356,8]
[394703956,1763907051060,-500.0,0.00038356,8]
[394703957,1763907051070,-500.0,0.00038356,8]
[394703958,1763907051079,-500.0,0.00038356,8]
[394703959,1763907051089,-503.97580531,0.00038356,8]
[394703960,1763907051098,-500.0,0.00038356,8]
[394703961,1763907051107,-552.69342841,0.00038356,8]
[394703962,1763907051116,-787.23,0.00038356,8]
[394703963,1763907051126,-763.28,0.00038356,8]
[394703964,1763907051139,-609.07,0.00038356,8]
[394703965,1763907051149,-709.14,0.00038356,8]
[394703966,1763907051159,-500.0,0.00038356,8]
[394703967,1763907051168,-500.0,0.00038356,8]
[394703968,1763907051177,-500.0,0.00038356,8]
[394703969,1763907051186,-514.50751436,0.00038356,8]
[394703970,1763907051196,-500.0,0.00038356,8]
[394703971,1763907051205,-629.80876067,0.00038356,8]
[394703972,1763907051215,-500.0,0.00038356,8]
[394703973,1763907051226,-766.96,0.00038356,8]
[394703974,1763907051236,-500.0,0.00038356,8]
[394703975,1763907051245,-500.0,0.00038356,8]
[394703976,1763907051255,-534.95633025,0.00038356,8]
[394703977,1763907051265,-500.0,0.00038356,8]
[394703978,1763907051274,-500.0,0.00038356,8]
[394703979,1763907051283,-500.0,0.00038356,8]
[394703980,1763907051293,-645.62,0.00038356,8]
[394703981,1763907051303,-500.0,0.00038356,8]
[394703982,1763907051313,-500.0,0.00038356,8]
[394703983,1763907051323,-500.0,0.00038356,8]
[394703984,1763907051332,-500.0,0.00038356,8]
[394703985,1763907051342,-500.0,0.00038356,8]
[394703986,1763907051351,-461.22622016,0.00038356,8]
[394703987,1763907051361,-500.0,0.00038356,8]
[394703988,1763907051371,-500.0,0.00038356,8]
[394703989,1763907051381,-500.0,0.00038356,8]
[394703990,1763907051390,-500.0,0.00038356,8]
[394703991,1763907051399,-500.0,0.00038356,8]
[394703992,1763907051409,-500.0,0.00038356,8]
[394703993,1763907051419,-600.31,0.00038356,8]
[394703994,1763907051428,-500.0,0.00038356,8]
[394703995,1763907051437,-500.0,0.00038356,8]
[394703996,1763907051447,-500.0,0.00038356,8]
[394703997,1763907051458,-312.3901335,0.00038356,8]
[394703998,1763907051467,-410.99492798,0.00038356,8]
[394703999,1763907051478,-546.32,0.00038356,8]
[394704000,1763907051487,-500.0,0.00038356,8]
[394704001,1763907051501,-500.0,0.00038356,8]
[394704002,1763907051511,-500.0,0.00038356,8]
[394704003,1763907051520,-557.83303897,0.00038356,8]
[394704004,1763907051530,-500.0,0.00038356,8]
[394704005,1763907051539,-500.0,0.00038356,8]
[394704006,1763907051549,-665.12,0.00038356,8]
[394704007,1763907051558,-500.0,0.00038356,8]
[394704008,1763907051567,-500.0,0.00038356,8]
[394704009,1763907051576,-500.0,0.00038356,8]
[394704010,1763907051586,-280.69488454,0.00038356,8]
[394704011,1763907051595,-500.0,0.00038356,8]
[394704012,1763907051604,-500.0,0.00038356,8]
[394704013,1763907051614,-500.0,0.00038356,8]
[394704014,1763907051623,-500.0,0.00038356,8]
[394704015,1763907051633,-560.53591205,0.00038356,8]
[394704016,1763907051642,-500.0,0.00038356,8]
[394704017,1763907051652,-661.5,0.00038356,8]
[394704018,1763907051662,-549.05,0.00038356,8]
[394704019,1763907051672,-523.76,0.00038356,8]
[394704020,1763907051681,-500.0,0.00038356,8]
[394704021,1763907051696,-500.0,0.00038356,8]
[394704022,1763907051706,-500.0,0.00038356,8]
[394704023,1763907051715,-753.99,0.00038356,8]
[394704024,1763907051726,-293.62136585,0.00038356,8]
[394704025,1763907051737,-500.0,0.00038356,8]
[394704026,1763907051747,-500.0,0.00038356,8]
[394704027,1763907051756,-500.0,0.00038356,8]
[394704028,1763907051766,-500.0,0.00038356,8]
[394704029,1763907051776,-500.0,0.00038356,8]
[394704030,1763907051785,-617.89470011,0.00038356,8]
[394704031,1763907051795,-725.58,0.00038356,8]
[394704032,1763907051806,-500.0,0.00038356,8]
[394704033,1763907051815,-500.0,0.00038356,8]
[394704034,1763907051825,-500.0,0.00038356,8]
[394704035,1763907051835,-553.88,0.00038356,8]
[394704036,1763907051843,-500.0,0.00038356,8]
[394704037,1763907051853,-182.07244061,0.00038356,8]
[394704038,1763907051863,-500.0,0.00038356,8]
[394704039,1763907051874,-500.0,0.00038356,8]
[394704040,1763907051885,-500.0,0.00038356,8]
[394704041,1763907051899,-1385.85,0.00038356,8]
[394704042,1763907051909,-500.0,0.00038356,8]
[394704043,1763907051920,-659.27,0.00038356,8]
[394704044,1763907051933,-500.0,0.00038356,8]
[394704045,1763907051943,-500.89905905,0.00038356,8]
[394704046,1763907051952,-500.0,0.00038356,8]
[394704047,1763907051963,-500.0,0.00038356,8]
[394704048,1763907051974,-586.23,0.00038356,8]
[394704049,1763907051984,-570.72,0.00038356,8]
[394704050,1763907051993,-500.0,0.00038356,8]
[394704051,1763907052004,-550.41,0.00038356,8]
[394704052,1763907052015,-600.0,0.00038356,8]
[394704053,1763907052024,-520.45,0.00038356,8]
[394704054,1763907052033,-597.71,0.00038356,8]
[394704055,1763907052042,-806.9,0.00038356,8]
[394704056,1763907052052,-500.0,0.00038356,8]
[394704057,1763907052066,-500.0,0.00038356,8]
[394704058,1763907052079,-500.0,0.00038356,8]
[394704059,1763907052089,-453.59449638,0.00038356,8]
[394704060,1763907052101,-615.0,0.00038356,8]
[394704061,1763907052111,-500.0,0.00038356,8]
[394704062,1763907052121,-500.0,0.00038356,8]
[394704063,1763907052130,-500.0,0.00038356,8]
[394704064,1763907052140,-500.0,0.00038356,8]
[394704065,1763907052149,-500.0,0.00038356,8]
[394704066,1763907052158,-500.0,0.00038356,8]
[394704067,1763907052168,-633.56,0.00038356,8]
[394704068,1763907052179,-500.0,0.00038356,8]
[394704069,1763907052188,-500.0,0.00038356,8]
[394704070,1763907052198,-703.29,0.00038356,8]
[394704071,1763907052208,-500.0,0.00038356,8]
[394704072,1763907052219,-500.0,0.00038356,8]
[394704073,1763907052230,-500.0,0.00038356,8]
[394704074,1763907052241,-500.0,0.00038356,8]
[394704075,1763907052250,-500.0,0.00038356,8]
[394704076,1763907052260,-470.28751258,0.00038356,8]
[394704077,1763907052270,-500.0,0.00038356,8]
[394704078,1763907052279,-500.0,0.00038356,8]
[394704079,1763907052289,-500.0,0.00038356,8]
[394704080,1763907052299,-356.13,0.00038356,14]
[394704081,1763907052309,-500.0,0.00038356,8]
[394704082,1763907052323,-500.0,0.00038356,8]
[394704083,1763907052335,-500.0,0.00038356,8]
[394704084,1763907052346,-500.0,0.00038356,8]
[394704085,1763907052355,-519.14349668,0.00038356,8]
[394704086,1763907052365,-500.0,0.00038356,8]
[394704087,1763907052375,-500.0,0.00038356,8]
[394704088,1763907052385,-431.13446031,0.00038356,8]
[394704089,1763907052395,-500.0,0.00038356,8]
[394704090,1763907052405,-500.0,0.00038356,8]
[394704091,1763907052414,-500.0,0.00038356,8]
[394704092,1763907052424,-500.0,0.00038356,8]
[394704093,1763907052433,-501.95288314,0.00038356,8]
[394704094,1763907052443,-423.78289623,0.00038356,8]
[394704095,1763907052453,-532.56533983,0.00038356,8]
[394704096,1763907052464,-500.0,0.00038356,8]
[394704097,1763907052474,-587.08553846,0.00038356,8]
[394704098,1763907052483,-586.66430313,0.00038356,8]
[394704099,1763907052493,-500.0,0.00038356,8]
[394704100,1763907052512,-500.0,0.00038356,8]
[394704101,1763907052524,-521.78030273,0.00038356,8]
[394704102,1763907052534,-630.44,0.00038356,8]
[394704103,1763907052544,-500.0,0.00038356,8]
[394704104,1763907052554,-743.85,0.00038356,8]
[394704105,1763907052563,-542.01873034,0.00038356,8]
[394704106,1763907052573,-608.26,0.00038356,8]
[394704107,1763907052583,-500.0,0.00038356,8]
[394704108,1763907052593,-500.0,0.00038356,8]
[394704109,1763907052602,-500.0,0.00038356,8]
[394704110,1763907052612,-500.0,0.00038356,8]
[394704111,1763907052622,-500.0,0.00038356,8]
[394704112,1763907052631,-500.0,0.00038356,8]
[394704113,1763907052641,-500.0,0.00038356,8]
[394704114,1763907052651,-614.49,0.00038356,8]
[394704115,1763907052660,-500.0,0.00038356,8]
[394704116,1763907052670,-500.0,0.00038356,8]
[394704117,1763907052679,-500.0,0.00038356,8]
[394704118,1763907052689,-500.0,0.00038356,8]
[394704119,1763907052698,-500.0,0.00038356,8]
[394704120,1763907052708,-494.29315705,0.00038356,8]
[394704121,1763907052718,-500.0,0.00038356,8]
[394704122,1763907052729,-500.0,0.00038356,8]
[394704123,1763907052739,-500.0,0.00038356,8]
[394704124,1763907052750,-548.06,0.00038356,8]
[394704125,1763907052760,-500.0,0.00038356,8]
[394704126,1763907052770,-500.0,0.00038356,8]
[394704127,1763907052780,-354.94118775,0.00038356,8]
[394704128,1763907052790,-500.0,0.00038356,8]
[394704129,1763907052800,-500.0,0.00038356,8]
[394704130,1763907052810,-645.54,0.00038356,8]
[394704131,1763907052820,-312.74128684,0.00038356,8]
[394704132,1763907052830,-299.93333211,0.00038356,8]
[394704133,1763907052840,-500.68672214,0.00038356,8]
[394704134,1763907052849,-500.0,0.00038356,8]
[394704135,1763907052859,-423.49835154,0.00038356,8]
[394704136,1763907052869,-594.8732545,0.00038356,8]
[394704137,1763907052879,-511.94443778,0.00038356,8]
[394704138,1763907052889,-500.0,0.00038356,8]
[394704139,1763907052899,-500.0,0.00038356,8]
[394704140,1763907052909,-500.0,0.00038356,8]
[394704141,1763907052919,-500.0,0.00038356,8]
[394704142,1763907052935,-500.0,0.00038356,8]
[394704143,1763907052945,-500.0,0.00038356,8]
[394704144,1763907052955,-500.0,0.00038356,8]
[394704145,1763907052965,-500.0,0.00038356,8]
[394704146,1763907052975,-500.0,0.00038356,8]
[394704147,1763907052985,-500.0,0.00038356,8]
[394704148,1763907052997,-603.15,0.00038356,8]
[394704149,1763907053009,-500.0,0.00038356,8]
[394704150,1763907053021,-500.0,0.00038356,8]
[394704151,1763907053030,-237.11706112,0.00038356,8]
[394704152,1763907053040,-505.2809812,0.00038356,8]
[394704153,1763907053050,-500.0,0.00038356,8]
[394704154,1763907053061,-359.94571844,0.00038356,8]
[394704155,1763907053154,-140.05428156,0.00038356,8]
[394704156,1763907053165,-500.0,0.00038356,8]
[394704157,1763907053175,-500.0,0.00038356,8]
[394704158,1763907053185,-502.2042454,0.00038356,8]
[394704159,1763907053196,-500.0,0.00038356,8]
[394704160,1763907053206,-500.0,0.00038356,8]
[394704161,1763907053216,-533.12889448,0.00038356,8]
[394704162,1763907053228,-500.0,0.00038356,8]
[394704163,1763907053238,-634.24,0.00038356,8]
[394704164,1763907053248,-500.0,0.00038356,8]
[394704165,1763907053261,-500.0,0.00038356,8]
[394704166,1763907053272,-347.36104116,0.00038356,8]
[394704167,1763907053568,-500.0,0.00038356,8]
[394704168,1763907053578,-500.0,0.00038356,8]
[394704169,1763907053588,-500.0,0.00038356,8]
[394704170,1763907053598,-571.74,0.00038356,8]
[394704171,1763907053607,-500.0,0.00038356,8]
[394704172,1763907053618,-246.44169233,0.00038356,8]
[394704173,1763907053627,-500.0,0.00038356,2]
[394704174,1763907053637,-500.0,0.00038356,8]
[394704175,1763907053646,-500.0,0.00038356,8]
[394704176,1763907053657,-332.03877877,0.00038356,8]
[394704177,1763907053667,-500.0,0.00038356,8]
[394704178,1763907053677,-500.0,0.00038356,8]
[394704179,1763907053687,-500.0,0.00038356,8]
[394704180,1763907053696,-500.0,0.00038356,8]
[394704181,1763907053706,-500.0,0.00038356,8]
[394704182,1763907053716,-500.0,0.00038356,8]
[394704183,1763907053727,-776.41,0.00038356,8]
[394704184,1763907053737,-500.0,0.00038356,8]
[394704185,1763907053747,-500.0,0.00038356,8]
[394704186,1763907053757,-647.81332632,0.00038356,8]
[394704187,1763907053766,-507.38371622,0.00038356,8]
[394704188,1763907053776,-500.0,0.00038356,8]
[394704189,1763907053786,-500.0,0.00038356,8]
[394704190,1763907053796,-892.48,0.00038356,8]
[394704191,1763907053806,-500.0,0.00038356,8]
[394704192,1763907053815,-549.99,0.00038356,8]
[394704193,1763907053826,-500.0,0.00038356,8]
[394704194,1763907053835,-500.0,0.00038356,8]
[394704195,1763907053845,-523.07,0.00038356,8]
[394704196,1763907053855,-580.37,0.00038356,8]
[394704197,1763907053865,-563.48,0.00038356,8]
[394704198,1763907053875,-500.0,0.00038356,8]
[394704199,1763907053886,-204.67884813,0.00038356,8]
[394704200,1763907053896,-529.43867004,0.00038356,8]
[394704201,1763907053907,-500.0,0.00038356,8]
[394704202,1763907053916,-322.71442289,0.00038356,8]
[394704203,1763907053929,-644.85561294,0.00038356,8]
[394704204,1763907053939,-500.0,0.00038356,8]
[394704205,1763907053949,-500.0,0.00038356,8]
[394704206,1763907053959,-472.59193941,0.00038356,8]
[394704207,1763907053975,-27.40806059,0.00038356,8]
[394704208,1763907053985,-645.88,0.00038356,8]
[394704209,1763907053995,-500.0,0.00038356,8]
[394704210,1763907054006,-698.27,0.00038356,8]
[394704211,1763907054016,-500.0,0.00038356,8]
[394704212,1763907054026,-195.40311315,0.00038356,8]
[394704213,1763907054037,-571.98,0.00038356,8]
[394704214,1763907054047,-500.0,0.00038356,8]
[394704215,1763907054057,-500.0,0.00038356,8]
[394704216,1763907054067,-500.0,0.00038356,8]
[394704217,1763907054077,-500.0,0.00038356,8]
[394704218,1763907054087,-815.01,0.00038356,8]
[394704219,1763907054097,-500.0,0.00038356,8]
[394704220,1763907054107,-500.0,0.00038356,8]
[394704221,1763907054116,-500.0,0.00038356,8]
[394704222,1763907054126,-500.0,0.00038356,8]
[394704223,1763907054136,-500.0,0.00038356,8]
[394704224,1763907054146,-503.65636013,0.00038356,8]
[394704225,1763907054156,-500.0,0.00038356,8]
[394704226,1763907054165,-500.0,0.00038356,8]
[394704227,1763907054175,-500.0,0.00038356,8]
[394704228,1763907054184,-1212.71,0.00038356,8]
[394704229,1763907054193,-500.0,0.00038356,8]
[394704230,1763907054203,-542.68,0.00038356,8]
[394704231,1763907054213,-374.91605233,0.00038356,8]
[394704232,1763907054222,-752.97,0.00038356,8]
[394704233,1763907054232,-867.68,0.00038356,8]
[394704234,1763907054242,-500.0,0.00038356,8]
[394704235,1763907054252,-500.0,0.00038356,8]
[394704236,1763907054261,-190.90962559,0.00038356,8]
[394704237,1763907054271,-500.0,0.00038356,8]
[394704238,1763907054280,-2251.53,0.00038356,8]
[394704239,1763907054290,-500.0,0.00038356,8]
[394704240,1763907054299,-500.0,0.00038356,8]
[394704241,1763907054309,-745.82,0.00038356,8]
[394704242,1763907054319,-500.0,0.00038356,8]
[394704243,1763907054328,-500.0,0.00038356,8]
[394704244,1763907054338,-500.0,0.00038356,8]
[394704245,1763907054348,-500.0,0.00038356,8]
[394704246,1763907054357,-500.0,0.00038356,8]
[394704247,1763907054367,-536.53329369,0.00038356,8]
[394704248,1763907054376,-500.0,0.00038356,8]
[394704249,1763907054386,-500.0,0.00038356,8]
[394704250,1763907054395,-857.5,0.00038356,8]
[394704251,1763907054405,-500.0,0.00038356,8]
[394704252,1763907054415,-841.23,0.00038356,8]
[394704253,1763907054427,-793.46,0.00038356,8]
[394704254,1763907054438,-500.0,0.00038356,8]
[394704255,1763907054447,-506.44305448,0.00038356,8]
[394704256,1763907054457,-500.0,0.00038356,8]
[394704257,1763907054466,-500.0,0.00038356,8]
[394704258,1763907054476,-500.0,0.00038356,8]
[394704259,1763907054485,-500.0,0.00038356,8]
[394704260,1763907054495,-500.0,0.00038356,8]
[394704261,1763907054504,-500.0,0.00038356,8]
[394704262,1763907054513,-500.0,0.00038356,8]
[394704263,1763907054523,-500.0,0.00038356,8]
[394704264,1763907054532,-500.0,0.00038356,8]
[394704265,1763907054542,-500.0,0.00038356,8]
[394704266,1763907054552,-500.0,0.00038356,8]
[394704267,1763907054562,-503.44870051,0.00038356,8]
[394704268,1763907054572,-548.66,0.00038356,8]
[394704269,1763907054582,-1514.23,0.00038356,8]
[394704270,1763907054593,-500.0,0.00038356,8]
[394704271,1763907054602,-801.55,0.00038356,8]
[394704272,1763907054613,-500.0,0.00038356,8]
[394704273,1763907054624,-500.0,0.00038356,8]
[394704274,1763907054634,-500.0,0.00038356,8]
[394704275,1763907054643,-517.09,0.00038356,8]
[394704276,1763907054653,-500.0,0.00038356,8]
[394704277,1763907054662,-629.21,0.00038356,8]
[394704278,1763907054672,-500.0,0.00038356,8]
[394704279,1763907054681,-514.90797295,0.00038356,8]
[394704280,1763907054691,-500.0,0.00038356,8]
[394704281,1763907054700,-669.61,0.00038356,8]
[394704282,1763907054710,-229.3883154,0.00038356,8]
[394704283,1763907054719,-500.0,0.00038356,8]
[394704284,1763907054729,-500.0,0.00038356,8]
[394704285,1763907054738,-597.72272521,0.00038356,8]
[394704286,1763907054747,-500.0,0.00038356,8]
[394704287,1763907054757,-542.48,0.00038356,8]
[394704288,1763907054767,-1310.14,0.00038356,8]
[394704289,1763907054778,-582.47,0.00038356,8]
[394704290,1763907054788,-500.0,0.00038356,8]
[394704291,1763907054798,-500.0,0.00038356,8]
[394704292,1763907054807,-505.18,0.00038356,8]
[394704293,1763907054817,-647.03033136,0.00038356,8]
[394704294,1763907054828,-500.0,0.00038356,8]
[394704295,1763907054838,-500.0,0.00038356,8]
[394704296,1763907054847,-500.0,0.00038356,8]
[394704297,1763907054857,-500.0,0.00038356,8]
[394704298,1763907054868,-500.0,0.00038356,8]
[394704299,1763907054877,-500.0,0.00038356,8]
[394704300,1763907054887,-500.0,0.00038356,8]
[394704301,1763907054896,-500.0,0.00038356,8]
[394704302,1763907054905,-500.0,0.00038356,8]
[394704303,1763907054915,-500.0,0.00038356,8]
[394704304,1763907054927,-500.0,0.00038356,8]
[394704305,1763907054938,-500.0,0.00038356,8]
[394704306,1763907054947,-500.0,0.00038356,8]
[394704307,1763907054957,-535.19,0.00038356,8]
[394704308,1763907054967,-500.0,0.00038356,8]
[394704309,1763907054976,-521.92,0.00038356,8]
[394704310,1763907054986,-592.53,0.00038356,8]
[394704311,1763907054996,-500.0,0.00038356,8]
[394704312,1763907055006,-770.0,0.00038356,8]
[394704313,1763907055016,-500.0,0.00038356,8]
[394704314,1763907055026,-500.0,0.00038356,7]
[394704315,1763907055035,-500.0,0.00038356,8]
[394704316,1763907055044,-500.0,0.00038356,8]
[394704317,1763907055053,-500.0,0.00038356,8]
[394704318,1763907055063,-500.0,0.00038356,8]
[394704319,1763907055073,-990.8,0.00038356,8]
[394704320,1763907055083,-500.0,0.00038356,8]
[394704321,1763907055092,-500.0,0.00038356,8]
[394704322,1763907055102,-500.0,0.00038356,8]
[394704323,1763907055111,-500.0,0.00038356,8]
[394704324,1763907055121,-500.0,0.00038356,8]
[394704325,1763907055130,-500.0,0.00038356,8]
[394704326,1763907055140,-500.0,0.00038356,8]
[394704327,1763907055150,-500.0,0.00038356,8]
[394704328,1763907055160,-547.57,0.00038356,8]
[394704329,1763907055169,-500.0,0.00038356,8]
[394704330,1763907055179,-500.0,0.00038356,8]
[394704331,1763907055188,-500.0,0.00038356,8]
[394704332,1763907055198,-802.87,0.00038356,8]
[394704333,1763907055207,-744.39,0.00038356,8]
[394704334,1763907055217,-938.84,0.00038356,8]
[394704335,1763907055227,-500.0,0.00038356,8]
[394704336,1763907055237,-500.0,0.00038356,8]
[394704337,1763907055246,-500.0,0.00038356,8]
[394704338,1763907055256,-500.0,0.00038356,8]
[394704339,1763907055265,-500.0,0.00038356,8]
[394704340,1763907055274,-417.6848467,0.00038356,8]
[394704341,1763907055283,-1032.76,0.00038356,8]
[394704342,1763907055293,-500.0,0.00038356,8]
[394704343,1763907055302,-500.0,0.00038356,8]
[394704344,1763907055312,-500.0,0.00038356,8]
[394704345,1763907055321,-618.11583145,0.00038356,8]
[394704346,1763907055331,-500.0,0.00038356,8]
[394704347,1763907055341,-500.0,0.00038356,8]
[394704348,1763907055351,-555.72,0.00038356,8]
[394704349,1763907055360,-500.0,0.00038356,8]
[394704350,1763907055370,-1020.26,0.00038356,8]
[394704351,1763907055381,-500.0,0.00038356,8]
[394704352,1763907055390,-500.0,0.00038356,8]
[394704353,1763907055400,-500.0,0.00038356,8]
[394704354,1763907055411,-500.0,0.00038356,8]
[394704355,1763907055422,-500.0,0.00038356,8]
[394704356,1763907055431,-500.0,0.00038356,8]
[394704357,1763907055441,-500.0,0.00038356,8]
[394704358,1763907055452,-500.0,0.00038356,8]
[394704359,1763907055462,-500.0,0.00038356,8]
[394704360,1763907055472,-1313.42,0.00038356,8]
[394704361,1763907055482,-500.0,0.00038356,8]
[394704362,1763907055492,-705.83,0.00038356,8]
[394704363,1763907055502,-500.0,0.00038356,8]
[394704364,1763907055512,-500.0,0.00038356,8]
[394704365,1763907055522,-500.0,0.00038356,8]
[394704366,1763907055531,-500.0,0.00038356,8]
[394704367,1763907055541,-500.0,0.00038356,8]
[394704368,1763907055551,-500.0,0.00038356,8]
[394704369,1763907055560,-500.0,0.00038356,8]
[394704370,1763907055570,-500.0,0.00038356,8]
[394704371,1763907055579,-500.0,0.00038356,8]
[394704372,1763907055589,-500.0,0.00038356,8]
[394704373,1763907055598,-500.0,0.00038356,8]
[394704374,1763907055608,-500.0,0.00038356,8]
[394704375,1763907055617,-645.57,0.00038356,8]
[394704376,1763907055627,-500.0,0.00038356,7]
[394704377,1763907055636,-500.0,0.00038356,8]
[394704378,1763907055646,-500.0,0.00038356,8]
[394704379,1763907055656,-619.67532525,0.00038356,8]
[394704380,1763907055666,-500.0,0.00038356,8]
[394704381,1763907055676,-500.0,0.00038356,8]
[394704382,1763907055685,-500.0,0.00038356,8]
[394704383,1763907055695,-1535.69,0.00038356,8]
[394704384,1763907055704,-500.0,0.00038356,8]
[394704385,1763907055713,-520.61308263,0.00038356,8]
[394704386,1763907055723,-927.65,0.00038356,8]
[394704387,1763907055733,-500.0,0.00038356,8]
[394704388,1763907055742,-506.67107371,0.00038356,8]
[394704389,1763907055752,-500.0,0.00038356,8]
[394704390,1763907055762,-500.0,0.00038356,8]
[394704391,1763907055772,-500.0,0.00038356,8]
[394704392,1763907055781,-500.0,0.00038356,8]
[394704393,1763907055791,-1871.08,0.00038356,8]
[394704394,1763907055801,-500.0,0.00038356,8]
[394704395,1763907055810,-500.0,0.00038356,8]
[394704396,1763907055820,-500.0,0.00038356,8]
[394704397,1763907055830,-805.05,0.00038356,8]
[394704398,1763907055840,-500.0,0.00038356,8]
[394704399,1763907055849,-500.0,0.00038356,8]
[394704400,1763907055858,-500.0,0.00038356,8]
[394704401,1763907055868,-500.0,0.00038356,8]
[394704402,1763907055877,-500.0,0.00038356,8]
[394704403,1763907055887,-506.78762454,0.00038356,8]
[394704404,1763907055896,-500.0,0.00038356,8]
[394704405,1763907055906,-626.57234669,0.00038356,8]
[394704406,1763907055916,-500.0,0.00038356,8]
[394704407,1763907055930,-500.0,0.00038356,8]
[394704408,1763907056011,-634.69,0.00038356,8]
[394704409,1763907056022,-500.0,0.00038356,8]
[394704410,1763907056032,-500.0,0.00038356,8]
[394704411,1763907056041,-691.47,0.00038356,8]
[394704412,1763907056050,-667.22,0.00038356,8]
[394704413,1763907056060,-500.0,0.00038356,8]
[394704414,1763907056069,-500.0,0.00038356,8]
[394704415,1763907056079,-500.0,0.00038356,8]
[394704416,1763907056089,-500.0,0.00038356,8]
[394704417,1763907056099,-500.0,0.00038356,8]
[394704418,1763907056108,-500.0,0.00038356,8]
[394704419,1763907056118,-500.0,0.00038356,8]
[394704420,1763907056127,-500.0,0.00038356,8]
[394704421,1763907056137,-500.0,0.00038356,8]
[394704422,1763907056147,-500.0,0.00038356,8]
[394704423,1763907056156,-907.96,0.00038356,8]
[394704424,1763907056165,-500.0,0.00038356,8]
[394704425,1763907056175,-500.0,0.00038356,8]
[394704426,1763907056184,-500.0,0.00038356,8]
[394704427,1763907056194,-500.0,0.00038356,8]
[394704428,1763907056203,-500.0,0.00038356,8]
[394704429,1763907056212,-500.0,0.00038356,8]
[394704430,1763907056222,-500.0,0.00038356,8]
[394704431,1763907056232,-500.0,0.00038356,8]
[394704432,1763907056242,-500.0,0.00038356,8]
[394704433,1763907056251,-500.0,0.00038356,8]
[394704434,1763907056260,-500.0,0.00038356,8]
[394704435,1763907056270,-500.0,0.00038356,8]